Workbook

Sheet Início
B1: Acerca do Modelo
B2: Utilize este modelo para criar um orçamento doméstico quinzenal
B3: A folha de cálculo Dashboard contém gráficos para Totais Mensais e Anuais e uma tabela para Rendimento e Despesas quinzenais.
B4: Introduza as categorias na folha de cálculo Listas de Dados e os valores na folha de cálculo Receita e Despesas.
B5: Atualizar a Tabela Dinâmica na folha de cálculo Relatório de Orçamento.
B6: Nota:
B7: existem instruções adicionais na coluna A em todas as folhas de cálculo. O texto encontra-se intencionalmente oculto. Para remover o texto, selecione a coluna A e, em seguida, selecione Eliminar.
B8: Para saber mais sobre a tabela, prima Shift+F10 numa tabela, selecione a opção TABELA e, em seguida, selecione TEXTO ALTERNATIVO. Para saber mais sobre as tabelas dinâmicas, prima Shift+F10 numa tabela, selecione OPÇÕES DA TABELA DINÂMICA e, em seguida, selecione o separador TEXTO ALTERNATIVO.

Sheet Dashboard
A1: Crie um dashboard para os Totais Mensais e Anuais e rendimento e despesas quinzenais nesta folha de cálculo. Existem instruções úteis sobre como utilizar esta folha de cálculo nas células desta coluna. O título deste livro encontra-se na célula à direita e o título da folha de cálculo na célula O1. | B1: Orçamento Doméstico Quinzenal | O1: PAINEL
A2: Selecione controlo de deslize na célula C2 para alterar o mês na célula à direita e, para alterar o ano na célula I2, selecione o controlo de deslize na célula J2. | B2: =CHOOSE(NúmeroDoMês,"JANEIRO","FEVEREIRO","MARÇO","ABRIL","MAIO","JUNHO","JULHO","AGOSTO","SETEMBRO","OUTUBRO","NOVEMBRO","DEZEMBRO") -> DEZEMBRO | C2: 12 | I2: =YEAR(TODAY()) -> 2022
A3: A etiqueta dos Totais Mensais encontra-se na célula à direita e a etiqueta dos Totais Anuais na célula I3. | B3: TOTAIS DE MESES | I3: TOTAIS ANUAIS
A4: O gráfico de barras a comparar os totais de Receita Mensal com os totais das Despesas Mensais encontra-se na célula C4 e o gráfico de barras a comparar os totais de Receita Anual aos totais de Despesas Anuais está na célula J4. A instrução seguinte está na célula A8. | B4: RENDIMENTOS | D4: =TotaisDeDespesasMensais -> 0 € | I4: RENDIMENTOS | L4: =TotaisDeDespesasAnuais -> 10,742 €
B5: GASTOS | D5: =TotaisDeRendimentoMensal -> 0 € | I5: GASTOS | L5: =TotaisDeRendimentoAnual -> 13,200 €
A8: A tabela do Dashboard que começa na célula à direita é atualizada automaticamente. | B8: Categoria | C8: JANEIRO | D8: FEVEREIRO | E8: MARÇO | F8: ABRIL | G8: MAIO | H8: JUNHO | I8: JULHO | J8: AGOSTO | K8: SETEMBRO | L8: OUTUBRO | M8: NOVEMBRO | N8: DEZEMBRO | O8: Sparkline
B9: Rendimento de 1 a 15 | C9: =SUMIFS(Rendimentos[MONTANTE],Rendimentos[DATA],"<="&DataMeio,Rendimentos[DATA],">="&DataInício) -> 0.00 € | D9: =SUMIFS(Rendimentos[MONTANTE],Rendimentos[DATA],"<="&DataMeio,Rendimentos[DATA],">="&DataInício) -> 0.00 € | E9: =SUMIFS(Rendimentos[MONTANTE],Rendimentos[DATA],"<="&DataMeio,Rendimentos[DATA],">="&DataInício) -> 1,300.00 € | F9: =SUMIFS(Rendimentos[MONTANTE],Rendimentos[DATA],"<="&DataMeio,Rendimentos[DATA],">="&DataInício) -> 3,100.00 € | G9: =SUMIFS(Rendimentos[MONTANTE],Rendimentos[DATA],"<="&DataMeio,Rendimentos[DATA],">="&DataInício) -> 500.00 € | H9: =SUMIFS(Rendimentos[MONTANTE],Rendimentos[DATA],"<="&DataMeio,Rendimentos[DATA],">="&DataInício) -> 0.00 € | I9: =SUMIFS(Rendimentos[MONTANTE],Rendimentos[DATA],"<="&DataMeio,Rendimentos[DATA],">="&DataInício) -> 0.00 € | J9: =SUMIFS(Rendimentos[MONTANTE],Rendimentos[DATA],"<="&DataMeio,Rendimentos[DATA],">="&DataInício) -> 0.00 € | K9: =SUMIFS(Rendimentos[MONTANTE],Rendimentos[DATA],"<="&DataMeio,Rendimentos[DATA],">="&DataInício) -> 0.00 € | L9: =SUMIFS(Rendimentos[MONTANTE],Rendimentos[DATA],"<="&DataMeio,Rendimentos[DATA],">="&DataInício) -> 0.00 € | M9: =SUMIFS(Rendimentos[MONTANTE],Rendimentos[DATA],"<="&DataMeio,Rendimentos[DATA],">="&DataInício) -> 0.00 € | N9: =SUMIFS(Rendimentos[MONTANTE],Rendimentos[DATA],"<="&DataMeio,Rendimentos[DATA],">="&DataInício) -> 0.00 €
B10: Rendimento de 16-ao FDM | C10: =SUMIFS(Rendimentos[MONTANTE],Rendimentos[DATA],"<="&DataFinal,Rendimentos[DATA],">="&DataMeio+1) -> 0.00 € | D10: =SUMIFS(Rendimentos[MONTANTE],Rendimentos[DATA],"<="&DataFinal,Rendimentos[DATA],">="&DataMeio+1) -> 0.00 € | E10: =SUMIFS(Rendimentos[MONTANTE],Rendimentos[DATA],"<="&DataFinal,Rendimentos[DATA],">="&DataMeio+1) -> 5,700.00 € | F10: =SUMIFS(Rendimentos[MONTANTE],Rendimentos[DATA],"<="&DataFinal,Rendimentos[DATA],">="&DataMeio+1) -> 2,600.00 € | G10: =SUMIFS(Rendimentos[MONTANTE],Rendimentos[DATA],"<="&DataFinal,Rendimentos[DATA],">="&DataMeio+1) -> 0.00 € | H10: =SUMIFS(Rendimentos[MONTANTE],Rendimentos[DATA],"<="&DataFinal,Rendimentos[DATA],">="&DataMeio+1) -> 0.00 € | I10: =SUMIFS(Rendimentos[MONTANTE],Rendimentos[DATA],"<="&DataFinal,Rendimentos[DATA],">="&DataMeio+1) -> 0.00 € | J10: =SUMIFS(Rendimentos[MONTANTE],Rendimentos[DATA],"<="&DataFinal,Rendimentos[DATA],">="&DataMeio+1) -> 0.00 € | K10: =SUMIFS(Rendimentos[MONTANTE],Rendimentos[DATA],"<="&DataFinal,Rendimentos[DATA],">="&DataMeio+1) -> 0.00 € | L10: =SUMIFS(Rendimentos[MONTANTE],Rendimentos[DATA],"<="&DataFinal,Rendimentos[DATA],">="&DataMeio+1) -> 0.00 € | M10: =SUMIFS(Rendimentos[MONTANTE],Rendimentos[DATA],"<="&DataFinal,Rendimentos[DATA],">="&DataMeio+1) -> 0.00 € | N10: =SUMIFS(Rendimentos[MONTANTE],Rendimentos[DATA],"<="&DataFinal,Rendimentos[DATA],">="&DataMeio+1) -> 0.00 €
B11: Despesas de 1 a 15 | C11: =SUMIFS(Gastos[MONTANTE],Gastos[DATA],"<="&DataMeio+1,Gastos[DATA],">="&DataInício) -> 0.00 € | D11: =SUMIFS(Gastos[MONTANTE],Gastos[DATA],"<="&DataMeio+1,Gastos[DATA],">="&DataInício) -> 0.00 € | E11: =SUMIFS(Gastos[MONTANTE],Gastos[DATA],"<="&DataMeio+1,Gastos[DATA],">="&DataInício) -> 150.00 € | F11: =SUMIFS(Gastos[MONTANTE],Gastos[DATA],"<="&DataMeio+1,Gastos[DATA],">="&DataInício) -> 75.00 € | G11: =SUMIFS(Gastos[MONTANTE],Gastos[DATA],"<="&DataMeio+1,Gastos[DATA],">="&DataInício) -> 2,492.00 € | H11: =SUMIFS(Gastos[MONTANTE],Gastos[DATA],"<="&DataMeio+1,Gastos[DATA],">="&DataInício) -> 0.00 € | I11: =SUMIFS(Gastos[MONTANTE],Gastos[DATA],"<="&DataMeio+1,Gastos[DATA],">="&DataInício) -> 0.00 € | J11: =SUMIFS(Gastos[MONTANTE],Gastos[DATA],"<="&DataMeio+1,Gastos[DATA],">="&DataInício) -> 0.00 € | K11: =SUMIFS(Gastos[MONTANTE],Gastos[DATA],"<="&DataMeio+1,Gastos[DATA],">="&DataInício) -> 0.00 € | L11: =SUMIFS(Gastos[MONTANTE],Gastos[DATA],"<="&DataMeio+1,Gastos[DATA],">="&DataInício) -> 0.00 € | M11: =SUMIFS(Gastos[MONTANTE],Gastos[DATA],"<="&DataMeio+1,Gastos[DATA],">="&DataInício) -> 0.00 € | N11: =SUMIFS(Gastos[MONTANTE],Gastos[DATA],"<="&DataMeio+1,Gastos[DATA],">="&DataInício) -> 0.00 €
B12: Despesas de 16 ao FDM | C12: =SUMIFS(Gastos[MONTANTE],Gastos[DATA],"<="&DataFinal,Gastos[DATA],">="&DataMeio+1) -> 0.00 € | D12: =SUMIFS(Gastos[MONTANTE],Gastos[DATA],"<="&DataFinal,Gastos[DATA],">="&DataMeio+1) -> 1,075.00 € | E12: =SUMIFS(Gastos[MONTANTE],Gastos[DATA],"<="&DataFinal,Gastos[DATA],">="&DataMeio+1) -> 5,350.00 € | F12: =SUMIFS(Gastos[MONTANTE],Gastos[DATA],"<="&DataFinal,Gastos[DATA],">="&DataMeio+1) -> 1,600.00 € | G12: =SUMIFS(Gastos[MONTANTE],Gastos[DATA],"<="&DataFinal,Gastos[DATA],">="&DataMeio+1) -> 0.00 € | H12: =SUMIFS(Gastos[MONTANTE],Gastos[DATA],"<="&DataFinal,Gastos[DATA],">="&DataMeio+1) -> 0.00 € | I12: =SUMIFS(Gastos[MONTANTE],Gastos[DATA],"<="&DataFinal,Gastos[DATA],">="&DataMeio+1) -> 0.00 € | J12: =SUMIFS(Gastos[MONTANTE],Gastos[DATA],"<="&DataFinal,Gastos[DATA],">="&DataMeio+1) -> 0.00 € | K12: =SUMIFS(Gastos[MONTANTE],Gastos[DATA],"<="&DataFinal,Gastos[DATA],">="&DataMeio+1) -> 0.00 € | L12: =SUMIFS(Gastos[MONTANTE],Gastos[DATA],"<="&DataFinal,Gastos[DATA],">="&DataMeio+1) -> 0.00 € | M12: =SUMIFS(Gastos[MONTANTE],Gastos[DATA],"<="&DataFinal,Gastos[DATA],">="&DataMeio+1) -> 0.00 € | N12: =SUMIFS(Gastos[MONTANTE],Gastos[DATA],"<="&DataFinal,Gastos[DATA],">="&DataMeio+1) -> 0.00 €

Sheet Despesas e Rendimento
A1: Crie uma lista de itens de Rendimento e Despesas nesta folha de cálculo. Existem instruções úteis sobre como utilizar esta folha de cálculo nas células desta coluna. O título do livro encontra-se na célula à direita e o título da folha de cálculo na célula H1. | B1: =Título_Orçamento_Doméstico_Quinzenal -> Orçamento Doméstico Quinzenal | H1: RECEITA E DESPESAS
A2: A etiqueta de Rendimento encontra-se na célula à direita e a etiqueta de Despesas na célula F2. | B2: RENDIMENTOS | F2: GASTOS
A3: Introduza os detalhes na tabela Rendimento a partir da célula à direita e na tabela Despesas a partir da célula F3. | B3: DATA | C3: DESCRIÇÃO | D3: MONTANTE | F3: DATA | G3: CATEGORIA | H3: DESCRIÇÃO | I3: MONTANTE
B4: =TODAY() -> 2022-05-12 | C4: Bónus | D4: 500.00 € | F4: =TODAY() -> 2022-05-12 | G4: Médico | H4: Seguros | I4: 500.00 €
B5: =TODAY()-14 -> 2022-04-28 | C5: Salário do David | D5: 1,300.00 € | F5: =TODAY()-7 -> 2022-05-05 | G5: Casa | H5: Hipoteca | I5: 1,000.00 €
B6: =TODAY()-14 -> 2022-04-28 | C6: Salário da Patrícia | D6: 1,300.00 € | F6: 2022-05-05 | G6: Casa | H6: Eletricidade | I6: 100.00 €
B7: =TODAY()-28 -> 2022-04-14 | C7: Salário do David | D7: 1,500.00 € | F7: 2022-05-05 | G7: Casa | H7: Água/Saneamento | I7: 50.00 €
B8: =TODAY()-28 -> 2022-04-14 | C8: Salário da Patrícia | D8: 1,600.00 € | F8: 2022-05-05 | G8: Casa | H8: Lixo | I8: 25.00 €
B9: =TODAY()-42 -> 2022-03-31 | C9: Salário do David | D9: 1,300.00 € | F9: 2022-05-05 | G9: Casa | H9: Telemóvel | I9: 100.00 €
B10: =TODAY()-42 -> 2022-03-31 | C10: Salário da Patrícia | D10: 1,300.00 € | F10: 2022-05-05 | G10: Casa | H10: Telemóvel | I10: 30.00 €
B11: =TODAY()-56 -> 2022-03-17 | C11: Salário do David | D11: 1,500.00 € | F11: 2022-05-05 | G11: Casa | H11: Hipoteca | I11: 50.00 €
B12: =TODAY()-56 -> 2022-03-17 | C12: Salário da Patrícia | D12: 1,600.00 € | F12: 2022-05-05 | G12: Casa | H12: Telemóvel | I12: 50.00 €
B13: =TODAY()-70 -> 2022-03-03 | C13: Salário do David | D13: 1,300.00 € | F13: =TODAY()-7 -> 2022-05-05 | G13: Casa | H13: Telemóvel | I13: 25.00 €
F14: =TODAY()-8 -> 2022-05-04 | G14: Casa | H14: Eletricidade | I14: 100.00 €
F15: =TODAY()-9 -> 2022-05-03 | G15: Lazer | H15: Filmes | I15: 37.00 €
F16: =TODAY()-10 -> 2022-05-02 | G16: Comida | H16: Compras | I16: 350.00 €
F17: =TODAY()-11 -> 2022-05-01 | G17: Comida | H17: Restauração | I17: 75.00 €
F18: =TODAY()-12 -> 2022-04-30 | G18: Crianças | H18: Dinheiro para o almoço | I18: 150.00 €
F19: =TODAY()-13 -> 2022-04-29 | G19: Contas de Investimento | H19: Poupanças | I19: 250.00 €
F20: =TODAY()-14 -> 2022-04-28 | G20: Contas de Investimento | H20: Conta de investimento | I20: 250.00 €
F21: =TODAY()-15 -> 2022-04-27 | G21: Pessoal | H21: Ginásio/Health Club | I21: 100.00 €
F22: =TODAY()-16 -> 2022-04-26 | G22: Animais de Estimação | H22: Comida | I22: 50.00 €
F23: =TODAY()-20 -> 2022-04-22 | G23: Animais de Estimação | H23: Beleza | I23: 50.00 €
F24: =TODAY()-20 -> 2022-04-22 | G24: Animais de Estimação | H24: Outros | I24: 50.00 €
F25: =TODAY()-25 -> 2022-04-17 | G25: Transportes | H25: Prestação do Carro 1 | I25: 300.00 €
F26: =TODAY()-25 -> 2022-04-17 | G26: Transportes | H26: Prestação do Carro 2 | I26: 350.00 €
F27: =TODAY()-25 -> 2022-04-17 | G27: Transportes | H27: Seguro Automóvel | I27: 50.00 €
F28: =TODAY()-30 -> 2022-04-12 | G28: Transportes | H28: Combustível | I28: 50.00 €
F29: =TODAY()-31 -> 2022-04-11 | G29: Transportes | H29: Combustível | I29: 25.00 €
F30: =TODAY()-42 -> 2022-03-31 | G30: Transportes | H30: Prestação do Carro 2 | I30: 150.00 €
F31: =TODAY()-45 -> 2022-03-28 | G31: Casa | H31: Hipoteca | I31: 5,000.00 €
F32: =TODAY()-50 -> 2022-03-23 | G32: Casa | H32: Eletricidade | I32: 200.00 €
F33: =TODAY()-65 -> 2022-03-08 | G33: Casa | H33: Telemóvel | I33: 100.00 €
F34: =TODAY()-70 -> 2022-03-03 | G34: Casa | H34: Lixo | I34: 50.00 €
F35: =TODAY()-75 -> 2022-02-26 | G35: Casa | H35: Hipoteca | I35: 1,000.00 €
F36: =TODAY()-78 -> 2022-02-23 | G36: Lazer | H36: Filmes | I36: 75.00 €

Sheet Relatório de Orçamento
A1: Crie um Relatório de Orçamento nesta folha de cálculo. Existem instruções úteis sobre como utilizar esta folha de cálculo nas células desta coluna. O título do livro encontra-se na célula à direita e o título da folha de cálculo na célula F1. | B1: =Título_Orçamento_Doméstico_Quinzenal -> Orçamento Doméstico Quinzenal | F1: RELATÓRIO DE ORÇAMENTO
A2: Selecione os Anos, Meses ou Dias e use o controlo de deslize na célula à direita para obter uma Tabela Dinâmica de Despesas para o período selecionado. A segmentação de dados para filtrar os dados na Tabela Dinâmica está na célula E2 e a segmentação de dados da Descrição na célula F2. | B2: A linha cronológica para filtrar encontra-se nesta célula. | E2: A segmentação de dados para filtrar os dados da Tabela Dinâmica com base na Categoria encontra-se nesta célula. | F2: A segmentação de Dados para filtrar os dados da tabela dinâmica com base na Descrição está nesta célula.
A3: A sugestão encontra-se na célula à direita. | B3: Prima Shift+F10 na Tabela Dinâmica Despesas e, em seguida, selecione Atualizar para atualizar os dados nesta folha ou selecione Atualizar no separador Analisar.
A4: A etiqueta Despesas está na célula à direita | B4: GASTOS
A5: A Tabela Dinâmica a mostrar as despesas começa na célula à direita. A etiqueta Totais de Categoria encontra-se na célula D4. | B5: Rótulos de Linha | C5: Soma de MONTANTE | D5: TOTAIS DE CATEGORIA
A6: Gráfico circular a comparar o total de cada categoria encontra-se na célula D6. | B6: Prestação do Carro 1 | C6: 300.00 €
B7: Prestação do Carro 2 | C7: 500.00 €
B8: Beleza | C8: 50.00 €
B9: Combustível | C9: 75.00 €
B10: Comida | C10: 50.00 €
B11: Conta de investimento | C11: 250.00 €
B12: Dinheiro para o almoço | C12: 150.00 €
B13: Eletricidade | C13: 400.00 €
B14: Filmes | C14: 112.00 €
B15: Ginásio/Health Club | C15: 100.00 €
B16: Hipoteca | C16: 7,050.00 €
B17: Lixo | C17: 75.00 €
B18: Outros | C18: 50.00 €
B19: Poupanças | C19: 250.00 €
B20: Restauração | C20: 75.00 €
B21: Seguro Automóvel | C21: 50.00 €
B22: Seguros | C22: 500.00 €
B23: Telemóvel | C23: 305.00 €
B24: Água/Saneamento | C24: 50.00 €
B25: Compras | C25: 350.00 €
B26: Total Geral | C26: 10,742.00 €

Sheet Listas de Dados
A1: Introduza os dados de categoria nesta folha de cálculo para preencher as listas pendentes na tabela Despesas, na folha de cálculo Despesas e Receita. Modifique os nomes das categorias ou as descrições abaixo de cada categoria para atualizar as listas. Existem instruções úteis sobre como utilizar esta folha de cálculo nas células desta coluna. O título do livro encontra-se na célula à direita e o título da folha de cálculo na célula M1. | B1: =Título_Orçamento_Doméstico_Quinzenal -> Orçamento Doméstico Quinzenal | M1: LISTAS DE DADOS
A2: A sugestão encontra-se na célula à direita. | B2: CONFIGURAÇÃO Os dados de categoria abaixo preenchem as listas pendentes na tabela Despesas, na folha Despesas e Receita. Modifique os nomes das categorias ou as descrições abaixo de cada categoria para atualizar as listas.
A3: Introduza ou modifique os nomes ou descrições de categoria abaixo de cada categoria na tabela a partir da célula à direita. | B3: Casa | C3: Lazer | D3: Comida | E3: Presentes/Donativos | F3: Crianças | G3: Contas de Investimento | H3: Médico | I3: Outros | J3: Pessoal | K3: Animais de Estimação | L3: Impostos/Advogados | M3: Transportes
B4: Hipoteca | C4: Filmes | D4: Compras | E4: Instituição de Caridade 1 | F4: Roupa | G4: PPR | H4: Médico/Clínica | I4: Outros | J4: Vestuário | K4: Comida | L4: Federais | M4: Prestação do Carro 1
B5: Eletricidade | C5: Vídeos/Filmes | D5: Restauração | E5: Caridade 2 | F5: Brinquedos/Jogos | G5: Poupanças | H5: Seguros | I5: Quotas da organização | J5: Cabeleireiro/Manicure | K5: Materiais | L5: Distritais | M5: Prestação do Carro 2
B6: Água/Saneamento | C6: Música | E6: Caridade 3 | F6: Dinheiro para o almoço | G6: Corrente | J6: Limpeza a seco | K6: Médico | L6: Locais | M6: Seguro Automóvel
B7: Lixo | C7: Concertos/Cinema | E7: Presente | F7: Quotas/Taxas | G7: Reforma | J7: Ginásio/Health Club | K7: Beleza | L7: Outros | M7: Licenciamento/Registo
B8: Telemóvel | C8: Eventos desportivos | F8: Material escolar | G8: Conta de investimento | J8: Compras | K8: Outros | L8: Advogada | M8: Combustível

Sheet Tabela Dinâmica da Categoria (hidden)
B1: Orçamento Doméstico Quinzenal | M1: TABELA DINÂMICA DA CATEGORIA
B2: Esta Tabela Dinâmica é a origem de dados do Gráfico Dinâmico no Relatório de Orçamento.
B3: Rótulos de Linha | C3: Soma de MONTANTE
B4: Animais de Estimação | C4: 150 €
B5: Lazer | C5: 112 €
B6: Comida | C6: 425 €
B7: Casa | C7: 7,880 €
B8: Contas de Investimento | C8: 500 €
B9: Médico | C9: 500 €
B10: Pessoal | C10: 100 €
B11: Crianças | C11: 150 €
B12: Transportes | C12: 925 €
B13: Total Geral | C13: 10,742 €
